fUSD/lending_fUSD_20250711
["ID","MTS","AMOUNT","RATE_DAILY","PERIOD"]
[371036616,1752192122265,300.0,0.000275,120]
[371036617,1752192122349,300.0,0.00025205,120]
[371036619,1752192237458,152.9,0.00013699,2]
[371036624,1752192326664,158.57,0.0003013,120]
[371036625,1752192341102,-612.0,0.00019999,2]
[371036626,1752192341123,-4220.71142731,0.0002,7]
[371036627,1752192432088,-824.19669295,0.0002,7]
[371036628,1752192432120,-2194.2660424,0.0002,7]
[371036629,1752192545095,-19969.82583734,0.0002,7]
[371036630,1752192545120,-837.44822953,0.0002,7]
[371036631,1752192545145,-201.68266414,0.00022,2]
[371036632,1752192546064,-98.31733586,0.00022,2]
[371036633,1752192546087,-152.9,0.00022505,2]
[371036634,1752192546108,-200.0,0.00023,2]
[371036635,1752192546129,-250.0,0.00024755,2]
[371036636,1752192546154,-150.0,0.00025,2]
[371036637,1752192546174,-181.515989,0.00025,2]
[371036638,1752192546196,-280.0,0.000253,10]
[371036639,1752192546220,-150.0,0.0002541,2]
[371036640,1752192546247,-150.0,0.0002582,2]
[371036641,1752192546274,-150.0,0.0002622,2]
[371036642,1752192546298,-150.0,0.0002663,2]
[371036643,1752192546321,-121.58837599,0.0002704,2]
[371036644,1752192549069,-28.41162401,0.0002704,2]
[371036645,1752192561093,-156.0,0.00027396,2]
[371036646,1752192561115,-150.0,0.0002745,3]
[371036647,1752192561135,-391.0,0.0002783,15]
[371036648,1752192561159,-230.0,0.0002786,3]
[371036649,1752192561182,-176.97,0.00027891,2]
[371036650,1752192561205,-914.85053904,0.000298,5]
[371036651,1752192572097,-868.12805534,0.000296,5]
[371036657,1752192632268,-320.601167,0.00030056,30]
[371036658,1752192632279,-1091.81463369,0.000301,10]
[371036659,1752192632376,-1781.15343311,0.000301,10]
[371036660,1752192632479,-552.9419332,0.000301,10]
[371036661,1752192632489,-183.18,0.000301,2]
[371036662,1752192632499,-154.53,0.00030134,2]
[371036663,1752192632508,-449.99732438,0.00030635,3]
[371036664,1752192632583,-50.00267562,0.00030635,3]
[371036665,1752192632594,-1181.679,0.00030767,27]
[371036666,1752192632604,-200.0,0.00030912,2]
[371036667,1752192632614,-171.84,0.00031005,2]
[371036668,1752192632623,-2036.71,0.00031178,2]
[371036669,1752192632633,-152.9,0.00031311,2]
[371036670,1752192632642,-152.0,0.000316,3]
[371036671,1752192632651,-160.0,0.00031628,2]
[371036672,1752192632660,-151.88,0.00031688,2]
[371036673,1752192632670,-4110.0,0.00031906,2]
[371036674,1752192632679,-298.517,0.00031906,2]
[371036675,1752192632689,-2000.0,0.00032,32]
[371036676,1752192632698,-231.5,0.00032062,2]
[371036677,1752192632707,-231.5,0.00032222,2]
[371036678,1752192632717,-687.27,0.000323,2]
[371036679,1752192632726,-231.5,0.00032383,2]
[371036680,1752192632735,-204.82,0.00032464,120]
[371036681,1752192632745,-231.5,0.00032544,2]
[371036682,1752192632755,-231.5,0.00032704,2]
[371036683,1752192632764,-231.5,0.00032865,2]
[371036684,1752192632774,-666.0,0.00032877,2]
[371036685,1752192632784,-1000.0,0.00032887,2]
[371036686,1752192632795,-179.0,0.00033,14]
[371036687,1752192632804,-231.5,0.00033026,2]
[371036688,1752192632814,-250.0,0.0003311,2]
[371036689,1752192632823,-231.5,0.00033187,2]
[371036691,1752192632833,-171.84,0.0003333,2]
[371036693,1752192632844,-231.5,0.00033347,2]
[371036695,1752192632854,-618.89,0.00033367,2]
[371036697,1752192632863,-231.5,0.00033508,2]
[371036701,1752192632873,-163.39,0.00033518,2]
[371036704,1752192632883,-231.5,0.00033669,2]
[371036706,1752192632892,-168.0,0.00033671,2]
[371036707,1752192632903,-250.0,0.0003368,2]
[371036708,1752192632912,-168.0,0.00033775,2]
[371036709,1752192632921,-687.27,0.000338,2]
[371036710,1752192632931,-231.5,0.00033829,2]
[371036711,1752192632941,-157.86,0.00033918,2]
[371036712,1752192632950,-169.11795389,0.00033925,2]
[371036713,1752192632960,-171.85913098,0.00033925,2]
[371036714,1752192632970,-157.86,0.00033937,2]
[371036715,1752192632981,-235.94839276,0.00033948,2]
[371036716,1752192632991,-157.86,0.00033956,2]
[371036717,1752192633000,-157.86,0.00033974,2]
[371036718,1752192633010,-168.0,0.00033988,2]
[371036719,1752192633020,-231.5,0.0003399,2]
[371036720,1752192633030,-157.86,0.00033993,2]
[371036721,1752192633041,-157.86,0.00034012,2]
[371036722,1752192633051,-5000.0,0.00034012,2]
[371036723,1752192633060,-150.0,0.00034012,2]
[371036724,1752192633070,-23900.0,0.00034025,2]
[371036725,1752192633080,-157.86,0.00034031,2]
[371036726,1752192633090,-157.86,0.0003405,2]
[371036727,1752192633101,-157.86,0.00034069,2]
[371036728,1752192633110,-157.86,0.00034088,2]
[371036729,1752192633120,-157.86,0.00034106,2]
[371036730,1752192633130,-2257.3,0.00034108,120]
[371036731,1752192633354,-157.86,0.00034125,2]
[371036732,1752192633364,-157.86,0.00034144,2]
[371036733,1752192633374,-231.5,0.00034151,2]
[371036734,1752192633384,-157.86,0.00034163,2]
[371036735,1752192633394,-157.86,0.00034182,2]
[371036736,1752192633403,-157.86,0.00034201,2]
[371036737,1752192633413,-157.86,0.0003422,2]
[371036738,1752192633422,-157.86,0.00034238,2]
[371036739,1752192633432,-168.0,0.00034241,2]
[371036740,1752192633442,-157.86,0.00034257,2]
[371036741,1752192633451,-231.5,0.00034312,2]
[371036742,1752192633461,-200.0,0.00034455,7]
[371036743,1752192633470,-231.5,0.00034472,2]
[371036744,1752192633480,-1500.0,0.00034479,120]
[371036745,1752192633490,-210.4254034,0.00034487,2]
[371036746,1752192633500,-837.44822953,0.00034488,2]
[371036747,1752192633509,-2000.0,0.000345,2]
[371036748,1752192633519,-175.52,0.00034503,2]
[371036749,1752192633529,-179.0,0.00034521,30]
[371036750,1752192633539,-266.34,0.00034528,2]
[371036751,1752192633549,-1881.72,0.00034554,30]
[371036752,1752192633559,-171.8591309,0.00034589,2]
[371036753,1752192633569,-168.0,0.00034609,2]
[371036754,1752192633578,-231.5,0.00034633,2]
[371036755,1752192633588,-623.02993918,0.00034766,2]
[371036756,1752192633598,-1121.0,0.00034773,20]
[371036757,1752192633608,-231.5,0.00034794,2]
[371036758,1752192633618,-549.55,0.000348,7]
[371036759,1752192633627,-168.0,0.00034807,2]
[371036760,1752192633637,-168.0,0.00034816,2]
[371036761,1752192633647,-168.0,0.00034846,2]
[371036762,1752192633657,-425.86,0.000349,2]
[371036763,1752192633667,-231.5,0.00034954,2]
[371036764,1752192633677,-5803.37009826,0.00034999,26]
[371036765,1752192633686,-108807.36285519,0.00035,26]
[371036766,1752192633696,-1000.0,0.00035,7]
[371036767,1752192633706,-151.0,0.00035,2]
[371036768,1752192633716,-479.18745,0.00035,2]
[371036769,1752192633726,-33897.69504398,0.00035,2]
[371036770,1752192633736,-2958.34702808,0.00035,3]
[371036771,1752192633745,-1838.82358399,0.00035,32]
[371036772,1752192633758,-161.17641601,0.00035,32]
[371036773,1752192633767,-210.67746779,0.00035,7]
[371036774,1752192633777,-37.84511702,0.00035115,2]
[371036784,1752192638885,-215.39571391,0.00031046,30]
[371036785,1752192638909,-744.10428609,0.00031046,30]
[371036786,1752192638919,-1164.0,0.00031906,2]
[371036787,1752192638929,-500.0,0.00034772,7]
[371036788,1752192638939,-500.0,0.00034772,7]
[371036789,1752192638948,-500.0,0.00034772,7]
[371036790,1752192638958,-179.06041473,0.00034772,7]
[371036791,1752192638967,-500.0,0.00034772,7]
[371036792,1752192638976,-500.0,0.00034772,7]
[371036793,1752192638986,-500.0,0.00034772,7]
[371036794,1752192638995,-509.04103963,0.00034772,7]
[371036795,1752192639005,-500.0,0.00034772,7]
[371036796,1752192639014,-727.187,0.00034906,2]
[371036797,1752192639023,-193.65488298,0.00035115,2]
[371036798,1752192639033,-1121.0,0.00035132,20]
[371036799,1752192639042,-171.8591309,0.00035253,2]
[371036800,1752192639052,-305.13,0.00035396,2]
[371036801,1752192639061,-303.57,0.00035396,2]
[371036802,1752192639071,-305.35,0.00035397,2]
[371036803,1752192639082,-303.05,0.00035397,2]
[371036804,1752192639092,-687.27,0.000354,2]
[371036805,1752192639101,-304.6,0.00035469,2]
[371036806,1752192639111,-1121.0,0.0003549,20]
[371036807,1752192639120,-168.0,0.00035575,2]
[371036808,1752192639131,-171.84,0.00035656,2]
[371036809,1752192639140,-1610.43,0.00035664,2]
[371036810,1752192639150,-168.0,0.00035678,2]
[371036811,1752192639159,-152.0,0.000357,4]
[371036812,1752192639170,-151.88,0.00035709,2]
[371036813,1752192639183,-300.4,0.0003579,2]
[371036814,1752192639193,-302.43,0.0003579,2]
[371036815,1752192639202,-168.0,0.00035822,2]
[371036816,1752192639211,-1121.0,0.00035849,20]
[371036817,1752192639221,-421.16783003,0.00035849,20]
[371036818,1752192639231,-168.0,0.00035856,2]
[371036819,1752192639240,-171.8591309,0.00035917,2]
[371036821,1752192639250,-150.00000001,0.00036,7]
[371036822,1752192639259,-215.53,0.00036024,120]
[371036825,1752192639269,-168.0,0.00036147,2]
[371036826,1752192639278,-500.0,0.00036164,7]
[371036828,1752192639287,-500.0,0.00036164,7]
[371036830,1752192639297,-500.0,0.00036164,7]
[371036832,1752192639306,-1121.0,0.00036207,20]
[371036834,1752192639316,-180.0,0.00036247,30]
[371036837,1752192639325,-305.38,0.0003627,2]
[371036838,1752192639334,-303.4,0.0003627,2]
[371036841,1752192639344,-170.27,0.00036291,2]
[371036843,1752192639355,-304.77,0.00036512,2]
[371036845,1752192639365,-304.82,0.00036512,2]
[371036847,1752192639374,-300.99,0.00036512,2]
[371036849,1752192639384,-301.04,0.00036512,2]
[371036851,1752192639394,-304.94,0.00036512,2]
[371036852,1752192639404,-305.02,0.00036512,2]
[371036854,1752192639423,-303.11,0.00036512,2]
[371036856,1752192639433,-1121.0,0.00036566,20]
[371036858,1752192639443,-171.8591309,0.00036581,2]
[371036860,1752192639453,-200.0,0.00036656,2]
[371036862,1752192639463,-600.0,0.000367,2]
[371036864,1752192639472,-300.1592,0.00036873,2]
[371036866,1752192639482,-305.95,0.00036876,2]
[371036868,1752192639491,-687.27,0.000369,2]
[371036870,1752192639501,-1121.0,0.00036924,20]
[371036873,1752192639512,-303.26,0.00036974,2]
[371036874,1752192639522,-305.62,0.00036974,2]
[371036877,1752192639531,-302.01,0.00036974,2]
[371036879,1752192639541,-301.95,0.00036974,2]
[371036880,1752192639550,-304.43,0.00036974,2]
[371036882,1752192639559,-305.59,0.00036974,2]
[371036884,1752192639569,-302.58,0.00036974,2]
[371036886,1752192639578,-301.0,0.00036974,2]
[371036888,1752192639587,-305.29,0.00036974,2]
[371036890,1752192639596,-305.19,0.00036974,2]
[371036892,1752192639608,-305.61,0.00036974,2]
[371036894,1752192639617,-303.11,0.00036974,2]
[371036897,1752192639630,-1000.0,0.00036998,2]
[371036899,1752192639639,-479.18745,0.00037,2]
[371036901,1752192639649,-302.65,0.0003702,2]
[371036903,1752192639658,-303.55,0.0003702,2]
[371036905,1752192639668,-301.44,0.0003702,2]
[371036907,1752192639677,-300.33,0.0003702,2]
[371036909,1752192639686,-301.21,0.0003702,2]
[371036911,1752192639696,-303.94,0.0003702,2]
[371036913,1752192639706,-300.04,0.00037043,2]
[371036915,1752192639716,-171.8591309,0.00037244,2]
[371036917,1752192639725,-305.17,0.00037277,2]
[371036919,1752192639734,-302.78,0.00037277,2]
[371036921,1752192639744,-1739.0,0.000373,2]
[371036923,1752192639753,-305.81,0.00037336,2]
[371036925,1752192639762,-301.3,0.00037336,2]
[371036927,1752192639772,-301.02,0.00037336,2]
[371036928,1752192639783,-302.57,0.00037336,2]
[371036931,1752192639793,-169.47298351,0.00037421,2]
[371036932,1752192639803,-301.5,0.000375,2]
[371036934,1752192639812,-200.0,0.00037516,85]
[371036937,1752192639824,-5326.55,0.00037521,20]
[371036939,1752192639834,-1257.0,0.00037521,120]
[371036941,1752192639844,-2000.0,0.00037521,120]
[371036942,1752192639855,-7999.999999,0.00037521,7]
[371036944,1752192639865,-300.88,0.00037521,2]
[371036946,1752192639876,-302.14,0.00037521,2]
[371036948,1752192639886,-305.89,0.00037521,2]
[371036950,1752192639897,-302.87,0.000376,2]
[371036953,1752192639906,-304.81,0.0003776,2]
[371036954,1752192639915,-303.54,0.000378,2]
[371036956,1752192639923,-532.18384713,0.00037808,7]
[371036958,1752192639931,-386.81544293,0.00037808,7]
[371036960,1752192639940,-500.0,0.00037808,7]
[371036962,1752192639949,-687.27,0.000379,2]
[371036965,1752192639958,-171.8591309,0.00037908,2]
[371036967,1752192639967,-175.52,0.00037953,2]
[371036969,1752192639975,-1000.0,0.00038,30]
[371036971,1752192639983,-301.64,0.0003809,2]
[371036973,1752192639992,-301.27,0.0003809,2]
[371036975,1752192640000,-305.44,0.000381,2]
[371036977,1752192640010,-305.63,0.000381,2]
[371036979,1752192640020,-463.78,0.00038249,2]
[371036981,1752192640029,-463.78,0.00038249,2]
[371036983,1752192640039,-463.78,0.00038249,2]
[371036985,1752192640049,-463.78,0.00038249,2]
[371036987,1752192640058,-278.57,0.00038249,2]
[371036989,1752192640068,-160.0,0.00038286,7]
[371036990,1752192640078,-327.86,0.00038389,2]
[371036992,1752192640088,-303.65,0.00038421,2]
[371036994,1752192640098,-301.96,0.00038421,2]
[371036996,1752192640110,-305.18,0.00038421,2]
[371036998,1752192640120,-302.47,0.00038421,2]
[371037000,1752192640130,-305.52,0.00038421,2]
[371037003,1752192640140,-304.16,0.000385,2]
[371037004,1752192640150,-305.84,0.000385,2]
[371037006,1752192640160,-304.93,0.000385,2]
[371037008,1752192640171,-301.75,0.000385,2]
[371037011,1752192640183,-171.8591309,0.00038572,2]
[371037013,1752192640193,-2349.838697,0.00038799,16]
[371037014,1752192640202,-300.57,0.00038833,2]
[371037016,1752192640213,-302.6,0.00038833,2]
[371037019,1752192640226,-304.49,0.00038833,2]
[371037021,1752192640236,-916.0,0.00039,60]
[371037023,1752192640247,-479.18746,0.00039,2]
[371037025,1752192640257,-500.0,0.00039014,2]
[371037027,1752192640267,-302.33,0.00039016,2]
[371037029,1752192640276,-303.67,0.00039016,2]
[371037030,1752192640285,-305.34,0.00039016,2]
[371037032,1752192640295,-1896.34585384,0.00039103,60]
[371037034,1752192640304,-153.0,0.00039154,30]
[371037037,1752192640314,-153.0,0.00039155,30]
[371037038,1752192640324,-153.0,0.00039155,30]
[371037041,1752192640334,-153.0,0.00039155,30]
[371037043,1752192640343,-153.0,0.00039159,30]
[371037044,1752192640352,-153.0,0.00039159,30]
[371037046,1752192640362,-153.0,0.0003916,30]
[371037048,1752192640371,-153.0,0.0003916,30]
[371037051,1752192640381,-153.0,0.0003916,30]
[371037052,1752192640390,-153.0,0.00039164,30]
[371037055,1752192640400,-153.0,0.00039165,30]
[371037057,1752192640410,-153.0,0.00039165,30]
[371037059,1752192640419,-153.0,0.00039165,30]
[371037060,1752192640429,-153.0,0.00039167,30]
[371037062,1752192640438,-153.0,0.00039167,30]
[371037065,1752192640448,-153.0,0.0003917,30]
[371037067,1752192640457,-153.0,0.0003917,30]
[371037068,1752192640467,-153.0,0.0003917,30]
[371037070,1752192640477,-304.68,0.00039179,2]
[371037073,1752192640487,-27336.136275,0.0003919,3]
[371037074,1752192640496,-10114.50055272,0.000392,30]
[371037076,1752192640510,-380.54292029,0.000392,30]
[371037077,1752192640521,-781.95580012,0.000392,30]
[371037129,1752192641134,-301.9,0.00038069,2]
[371037131,1752192641144,-329.21743058,0.000392,30]
[371037133,1752192641153,-160.0,0.000392,30]
[371037135,1752192641164,-171.8591309,0.00039236,2]
[371037137,1752192641180,-400.0,0.000394,14]
[371037139,1752192641190,-500.0,0.00039452,7]
[371037141,1752192641199,-800.0,0.000395,14]
[371037143,1752192641209,-150.0,0.00039598,2]
[371037145,1752192641219,-182.3,0.000396,120]
[371037147,1752192641228,-1200.0,0.000396,14]
[371037149,1752192641238,-248.94035793,0.00039633,2]
[371037151,1752192641248,-1600.0,0.000397,14]
[371037153,1752192641259,-1707.9,0.000397,22]
[371037155,1752192641269,-150.0,0.00039719,2]
[371037157,1752192641278,-151.88,0.00039729,2]
[371037159,1752192641288,-466.0497197,0.0003979,15]
[371037161,1752192641297,-152.0,0.000398,5]
[371037163,1752192641307,-357.7298,0.000398,3]
[371037165,1752192641317,-1649.11171738,0.000398,90]
[371037167,1752192641329,-1053.25600262,0.000398,90]
[371037169,1752192641338,-1462.88472706,0.000398,14]
[371037172,1752192641349,-537.11527294,0.000398,14]
[371037174,1752192641359,-510.36444228,0.0003988,3]
[371037176,1752192641371,-922.43136142,0.0003988,3]
[371037180,1752192641397,-8438.99366672,0.0003988,3]
[371037686,1752192646441,-154.53,0.00030881,2]
[371037687,1752192646451,-154.53,0.00037058,2]
[371037689,1752192646460,-153.0,0.0003915,30]
[371037692,1752192646471,-153.0,0.0003915,30]
[371037694,1752192646480,-153.0,0.0003915,30]
[371037696,1752192646490,-3606.96344,0.0003988,3]
[371038542,1752192663228,1960.0,0.00024807,2]
[371038543,1752192663251,457.23978384,0.00024807,2]
[371038544,1752192705702,1444.24892945,0.000202,60]
[371038545,1752192705751,591.02107055,0.000202,60]
[371038546,1752192742821,300.0,0.000245,30]
[371038547,1752192788635,576.2560494,0.00030137,120]
[371038549,1752192842444,2000.0,0.0003,120]
[371038551,1752193323316,2000.0,0.000275,120]
[371038553,1752193428262,153.78,0.00013699,2]
[371038554,1752193428855,750.0,0.00030137,120]
[371038556,1752193443004,671.92,0.00030137,120]
[371038557,1752193508364,497865.48496426,0.00014,2]
[371038558,1752193531101,-1323.59234656,0.00021,2]
[371038563,1752193629098,-893.64769226,0.000199,2]
[371038564,1752193629118,-1447.26663897,0.000207,2]
[371038565,1752193630079,-256.14631651,0.000207,2]
[371038566,1752193677977,72475.21745292,0.00014,2]
[371038567,1752193722318,3877.42830459,0.00013368,2]
[371038570,1752193748142,-168.14132841,0.000199,2]
[371038571,1752193748163,-8300.0,0.0002,4]
[371038572,1752193748183,-958.67366172,0.0002,4]
[371038573,1752193748203,-558.86363033,0.0002,7]
[371038574,1752193748223,-513.75961278,0.0002,7]
[371038575,1752193748244,-522.11009046,0.0002001,2]
[371038576,1752193748267,-3411.37170562,0.0002001,2]
[371038577,1752193748288,-1692.64193619,0.000207,2]
[371038578,1752193748308,-11724.27893449,0.00021,2]
[371038579,1752193750710,-4053.59038236,0.00021,2]
[371038580,1752193753072,-1101.15194195,0.00021,2]
[371038581,1752193753093,-1163.17100152,0.00021,2]
[371038582,1752193753115,-191.97549931,0.00021,2]
[371038583,1752193753135,-417.0,0.000211,2]
[371038584,1752193753156,-153.78,0.00023182,2]
[371038585,1752193753176,-150.0,0.00025,2]
[371038586,1752193753196,-155.505899,0.00025,7]
[371038587,1752193753217,-150.0,0.0002541,2]
[371038588,1752193753237,-150.0,0.0002582,2]
[371038589,1752193753257,-150.0,0.0002622,2]
[371038590,1752193753279,-973.88762355,0.000266,7]
[371038591,1752193760137,-1610.80574141,0.000266,7]
[371038592,1752193760158,-150.0,0.0002663,2]
[371038593,1752193765109,-600.0,0.00027397,2]
[371038594,1752193765132,-600.0,0.00027397,2]
[371038595,1752193765155,-600.0,0.00027397,2]
[371038596,1752193765177,-600.0,0.00027397,2]
[371038597,1752193765199,-600.0,0.00027397,2]
[371038598,1752193765220,-600.0,0.00027397,2]
[371038599,1752193765241,-409.98169689,0.00027397,2]
[371038600,1752193771087,-190.01830311,0.00027397,2]
[371038601,1752193771111,-600.0,0.00027397,2]
[371038602,1752193771132,-600.0,0.00027397,2]
[371038603,1752193771153,-600.0,0.00027397,2]
[371038604,1752193771173,-357.66366116,0.00027397,2]
[371038610,1752193832300,-649.69859467,0.00028,60]
[371038611,1752193832312,-31.21090233,0.00028,60]
[371038612,1752193832322,-154.54,0.00028883,2]
[371038613,1752193832334,-224.58762816,0.00029986,2]
[371038614,1752193832407,-373.41237184,0.00029986,2]
[371038615,1752193832417,-291.39602816,0.00029987,14]
[371038616,1752193832519,-1155.0,0.00029987,14]
[371038617,1752193832531,-27884.28169785,0.00029987,14]
[371038618,1752193832542,-300.0,0.0003,30]
[371038619,1752193832551,-1000.0,0.0003,14]
[371038620,1752193832563,-1000.0,0.0003,14]
[371038621,1752193832572,-1000.0,0.0003,14]
[371038622,1752193832587,-1000.0,0.0003,14]
[371038623,1752193832597,-1000.0,0.0003,14]
[371038624,1752193832607,-538.55645983,0.0003,5]
[371038625,1752193832618,-150.0,0.000301,2]
[371038626,1752193832628,-512.0,0.00030639,2]
[371038627,1752193832637,-202.99997,0.00030639,2]
[371038628,1752193832647,-193.0,0.00030825,3]
[371038629,1752193832657,-3710.0,0.000313,5]
[371038630,1752193832667,-512.0,0.00031814,4]
[371038631,1752193832677,-5000.0,0.00032106,2]
[371038632,1752193832686,-168.14132841,0.00032566,2]
[371038633,1752193832696,-153.78,0.00032666,2]
[371038634,1752193832705,-512.0,0.00032988,6]
[371038635,1752193832714,-1349.572,0.00033089,2]
[371038636,1752193832724,-754.0,0.00033089,2]
[371038637,1752193832734,-176.97,0.00033481,2]
[371038638,1752193832743,-215.53,0.00033956,120]
[371038640,1752193832752,-512.0,0.00034163,8]
[371038642,1752193832761,-666.0,0.0003421,2]
[371038644,1752193832771,-154.54,0.0003466,2]
[371038646,1752193832780,-210.4254034,0.00034672,2]
[371038649,1752193832789,-500.0,0.00034999,7]
[371038652,1752193832799,-389.89344885,0.00034999,7]
[371038655,1752193832808,-500.0,0.00034999,7]
[371038658,1752193832818,-369.88731805,0.00034999,7]
[371038660,1752193832827,-107589.96431328,0.00035,10]
[371038662,1752193832844,-54.38769209,0.00035,10]
[371038664,1752193832854,-200.0,0.00035093,7]
[371038666,1752193832863,-1693.54,0.00035102,30]
[371038667,1752193832872,-165.46496464,0.000352,2]
[371038670,1752193832881,-329.73,0.000353,7]
[371038672,1752193832890,-512.0,0.00035337,11]
[371038674,1752193832899,-168.0,0.00035987,2]
[371038676,1752193832908,-161.0,0.00036,30]
[371038678,1752193832918,-168.0,0.00036126,2]
[371038680,1752193832927,-500.0,0.00036164,7]
[371038682,1752193832936,-168.0,0.00036237,2]
[371038684,1752193832945,-200.0,0.00036275,2]
[371038686,1752193832955,-945.344,0.00036301,44]
[371038687,1752193832964,-163.0,0.00036301,2]
[371038688,1752193832974,-165.46496463,0.00036375,2]
[371038689,1752193832984,-512.0,0.00036512,13]
[371038690,1752193832992,-163.39,0.00036968,2]
[371038691,1752193833002,-300.47,0.0003725,2]
[371038692,1752193833011,-301.01,0.00037406,2]
[371038693,1752193833021,-304.81,0.00037406,2]
[371038694,1752193833031,-301.72,0.00037406,2]
[371038695,1752193833041,-168.0,0.00037452,2]
[371038696,1752193833050,-309.44,0.00037455,2]
[371038697,1752193833060,-151.86,0.00037502,2]
[371038698,1752193833070,-551.51,0.00037503,2]
[371038699,1752193833082,-200.0,0.0003752,85]
[371038700,1752193833092,-266.77427043,0.00037533,7]
[371038701,1752193833103,-3966.19885269,0.00037533,120]
[371038702,1752193833116,-1065.80114731,0.00037533,120]
[371038703,1752193833126,-499.999999,0.00037533,120]
[371038704,1752193833136,-200.0,0.00037534,2]
[371038705,1752193833146,-165.46496463,0.0003755,2]
[371038706,1752193833157,-250.0,0.00037662,2]
[371038707,1752193833167,-512.0,0.00037686,15]
[371038708,1752193833177,-500.0,0.00037808,7]
[371038709,1752193833188,-167.48,0.00037818,2]
[371038710,1752193833199,-1000.0,0.000379,14]
[371038711,1752193833209,-1000.0,0.000379,14]
[371038712,1752193833219,-1000.0,0.000379,14]
[371038713,1752193833229,-1000.0,0.000379,14]
[371038714,1752193833239,-1000.0,0.000379,14]
[371038715,1752193833249,-1000.0,0.000379,14]
[371038716,1752193833259,-1000.0,0.00037901,2]
[371038717,1752193833269,-1000.0,0.00038,14]
[371038718,1752193833280,-305.49,0.00038,2]
[371038719,1752193833290,-300.66,0.00038,2]
[371038720,1752193833299,-305.2,0.00038,2]
[371038721,1752193833310,-303.76,0.00038,2]
[371038722,1752193833320,-300.68,0.00038,2]
[371038723,1752193833334,-304.56,0.00038,2]
[371038724,1752193833345,-301.37,0.00038,2]
[371038725,1752193833355,-1617.74554184,0.00038094,2]
[371038726,1752193833528,-1825.52645983,0.00038094,2]
[371038727,1752193833540,-786.79633202,0.00038094,2]
[371038728,1752193833552,-454.92750004,0.00038094,2]
[371038729,1752193833565,-393.61556953,0.00038094,2]
[371038730,1752193833576,-503.18146301,0.00038094,2]
[371038731,1752193833592,-372.18976162,0.00038094,2]
[371038732,1752193833604,-1411.25635411,0.00038094,2]
[371038733,1752193833629,-3033.331018,0.00038094,2]
[371038734,1752193833639,-173.59,0.00038129,2]
[371038735,1752193833648,-846.64025198,0.000383,120]
[371038736,1752193833658,-377.0,0.000383,2]
[371038737,1752193833667,-1343.46373003,0.0003836,120]
[371038738,1752193833679,-1461.46,0.0003836,120]
[371038740,1752193838264,-300.48,0.00038651,2]
[371038741,1752193838274,-304.42,0.00038651,2]
[371038742,1752193838283,-300.46,0.00038651,2]
[371038743,1752193838292,-303.22,0.00038651,2]
[371038744,1752193838302,-305.1,0.00038651,2]
[371038745,1752193838311,-303.23,0.00038651,2]
[371038746,1752193838320,-300.12,0.00038651,2]
[371038747,1752193838329,-1054.05174964,0.000387,120]